bitfinex/quotes_BTCUSD_20250316
["timestamp","ask_amount","ask_price","bid_price","bid_amount"]
[1742139041052,0.63570424,83246.0,83245.0,0.004]
[1742139041846,0.252306,83232.0,83223.0,0.0815]
[1742139042670,0.252306,83232.0,83223.0,0.093515]
[1742139042850,0.252306,83232.0,83223.0,0.33383]
[1742139043052,0.252306,83232.0,83224.0,0.012015]
[1742139043556,0.252306,83232.0,83231.0,0.0018]
[1742139043754,0.252296,83236.0,83231.0,0.0018]
[1742139043941,0.252304,83233.0,83231.0,0.0018]
[1742139044149,0.012014,83233.0,83231.0,0.0018]
[1742139044367,0.00013585,83232.0,83231.0,0.0018]
[1742139044793,0.00013585,83232.0,83231.0,0.014814]
[1742139044968,0.00013585,83232.0,83231.0,0.0018]
[1742139045167,0.252297,83236.0,83231.0,0.242092]
[1742139045422,0.00713654,83235.0,83231.0,0.242092]
[1742139045630,0.00713654,83235.0,83232.0,0.24029]
[1742139045855,0.00713654,83235.0,83233.0,0.240288]
[1742139046332,0.00713654,83235.0,83233.0,0.252302]
[1742139046495,0.00713654,83235.0,83234.0,0.012014]
[1742139046695,0.012013,83238.0,83232.0,0.012014]
[1742139046905,0.012013,83238.0,83231.0,0.255106]
[1742139046906,0.240282,83236.0,83231.0,0.254106]
[1742139047104,0.00701851,83235.0,83231.0,0.254106]
[1742139047311,0.00701851,83235.0,83233.0,0.252301]
[1742139047512,0.252282,83240.0,83234.0,0.240286]
[1742139047741,0.00699534,83239.0,83236.0,0.240279]
[1742139047916,0.00013847,83238.0,83235.0,0.012014]
[1742139048428,0.00013847,83238.0,83233.0,0.012014]
[1742139048632,0.00013847,83238.0,83236.0,0.012014]
[1742139048837,0.001,83240.0,83235.0,0.240283]
[1742139049196,0.24723509,83239.0,83235.0,0.240283]
[1742139049787,0.012013,83237.0,83231.0,0.012814]
[1742139049995,0.240288,83234.0,83231.0,0.0008]
[1742139050403,0.00699795,83233.0,83231.0,0.0008]
[1742139050745,0.240283,83236.0,83231.0,0.0008]
[1742139050951,0.00698994,83235.0,83231.0,0.0008]
[1742139051189,0.00698994,83235.0,83231.0,0.241092]
[1742139051488,0.25928894,83235.0,83231.0,0.0028]
[1742139051688,0.00012197,83234.0,83233.0,0.012014]
[1742139052224,0.26800348,83246.0,83238.0,0.012013]
[1742139052428,0.240256,83245.0,83241.0,0.240265]
[1742139052642,0.240256,83245.0,83244.0,0.012012]
[1742139052643,0.00694809,83245.0,83244.0,0.012012]
[1742139052845,0.00694809,83245.0,83243.0,0.240258]
[1742139053062,0.00041332,83246.0,83242.0,0.012013]
[1742139053212,0.00695343,83244.0,83241.0,0.316266]
[1742139053395,0.24066632,83246.0,83244.0,0.252268]
[1742139053396,0.00041332,83246.0,83244.0,0.252268]
[1742139053591,0.00041332,83246.0,83245.0,0.012012]
[1742139055115,0.00141332,83246.0,83245.0,0.015012]
[1742139055568,0.00041332,83246.0,83245.0,0.015012]
[1742139055772,0.00041332,83246.0,83245.0,0.018012]
[1742139056290,0.00041332,83246.0,83245.0,0.01921319]
[1742139057325,0.00041332,83246.0,83245.0,0.01621319]
[1742139057685,0.00041332,83246.0,83245.0,0.01821319]
[1742139058226,0.00041332,83246.0,83245.0,0.09921319]
[1742139058927,0.00041332,83246.0,83245.0,0.46295404]
[1742139059133,0.00041332,83246.0,83245.0,0.46175285]
[1742139059907,3.2e-07,83246.0,83245.0,0.46175285]
[1742139060091,3.2e-07,83246.0,83245.0,0.86852054]
[1742139060291,3.2e-07,83246.0,83245.0,0.91852054]
[1742139060502,3.2e-07,83246.0,83245.0,0.92969916]
[1742139060969,3.2e-07,83246.0,83245.0,0.91969916]
[1742139061281,3.2e-07,83246.0,83245.0,0.92569916]
[1742139061434,3.2e-07,83246.0,83245.0,0.88169916]
[1742139061634,0.00982996,83284.0,83275.0,0.252173]
[1742139061802,0.00982996,83284.0,83275.0,0.25229707]
[1742139062003,0.48017887,83290.0,83276.0,0.25217]
[1742139062004,0.00721172,83283.0,83276.0,0.25217]
[1742139062258,0.00721172,83283.0,83282.0,0.012007]
[1742139062493,0.3,83291.0,83286.0,0.012006]
[1742139062756,0.00721338,83290.0,83286.0,0.012006]
[1742139063022,0.00721338,83290.0,83287.0,0.252139]
[1742139063628,0.00721338,83290.0,83289.0,0.252133]
[1742139063988,0.763,83303.0,83298.0,0.012005]
[1742139064188,0.763,83303.0,83295.0,0.012005]
[1742139064532,0.252094,83302.0,83294.0,0.252115]
[1742139064733,0.252094,83302.0,83292.0,0.012005]
[1742139064734,0.240093,83301.0,83292.0,0.012005]
[1742139064889,0.24011,83295.0,83288.0,0.012006]
[1742139065331,0.00033603,83294.0,83290.0,0.012006]
[1742139065529,0.00033603,83294.0,83290.0,0.25213]
[1742139066293,0.252114,83296.0,83290.0,0.25213]
[1742139066639,0.24045093,83295.0,83290.0,0.012006]
[1742139066881,0.240127,83289.0,83288.0,0.001]
[1742139067332,0.24046016,83289.0,83284.0,0.1492963]
[1742139067863,0.00033316,83289.0,83287.0,0.012006]
[1742139068072,0.00033316,83289.0,83288.0,0.012006]
[1742139068272,0.252099,83301.0,83295.0,0.252115]
[1742139068462,0.252099,83301.0,83292.0,0.252121]
[1742139068463,0.25245542,83300.0,83293.0,0.252119]
[1742139068657,0.25245542,83300.0,83294.0,0.252115]
[1742139068863,0.25245542,83300.0,83295.0,0.252112]
[1742139069301,0.240102,83298.0,83294.0,0.252115]
[1742139069634,0.01235453,83299.0,83294.0,0.252115]
[1742139069753,0.02753414,83302.0,83294.0,0.012005]
[1742139069960,0.012005,83298.0,83290.0,0.240123]
[1742139070161,0.02753414,83302.0,83287.0,0.243132]
[1742139070162,0.24013,83289.0,83287.0,0.003]
[1742139070560,0.00695897,83288.0,83285.0,0.240138]
[1742139070736,0.252127,83291.0,83285.0,0.240138]
[1742139070940,0.00696163,83287.0,83285.0,0.252144]
[1742139071115,0.252127,83291.0,83285.0,0.252144]
[1742139071319,0.00696429,83286.0,83285.0,0.252144]
[1742139071544,0.252132,83290.0,83287.0,0.001]
[1742139072060,0.252132,83290.0,83285.0,0.252144]
[1742139072222,0.252132,83290.0,83285.0,0.2498302]
[1742139072423,0.012006,83291.0,83286.0,0.25214]
[1742139072849,0.01882123,83289.0,83286.0,0.25214]
[1742139073050,0.01882123,83289.0,83288.0,0.252136]
[1742139075026,0.01882123,83289.0,83288.0,0.255136]
[1742139075699,0.01882123,83289.0,83288.0,0.257136]
[1742139077716,0.02577444,83289.0,83288.0,0.257136]
[1742139077942,0.01882123,83289.0,83288.0,0.257136]
[1742139081507,0.01882123,83289.0,83288.0,0.337836]
[1742139086099,0.0003386,83290.0,83289.0,0.012006]
[1742139086304,0.0003386,83290.0,83289.0,0.02746214]
[1742139086506,0.0003386,83290.0,83289.0,0.01320645]
[1742139087494,0.0003386,83290.0,83289.0,0.061906]
[1742139087702,0.0003386,83290.0,83288.0,0.337836]
[1742139087703,0.2404646,83290.0,83288.0,0.005]
[1742139087920,0.252136,83288.0,83284.0,0.0001693]
[1742139088237,0.01428045,83288.0,83284.0,0.2403093]
[1742139088432,0.00698292,83287.0,83284.0,0.2403093]
[1742139088635,0.00698292,83287.0,83284.0,0.2523163]
[1742139088978,0.25214,83287.0,83284.0,0.0001693]
[1742139089176,0.00698169,83286.0,83284.0,0.0001693]
[1742139089398,0.24711869,83286.0,83284.0,0.0001693]
[1742139089635,0.25912469,83286.0,83284.0,0.0001693]
[1742139090077,0.36890286,83285.0,83284.0,0.0001693]
[1742139090279,0.312006,83285.0,83284.0,0.0001693]
[1742139090638,0.31900506,83285.0,83284.0,0.0001693]
[1742139091529,0.31900506,83285.0,83284.0,0.0011693]
[1742139093971,0.33812189,83285.0,83284.0,0.0001693]
[1742139097662,0.240192,83267.0,83262.0,0.23749637]
[1742139097863,0.240225,83255.0,83251.0,0.0775]
[1742139098068,0.240223,83256.0,83252.0,0.252242]
[1742139098395,0.240223,83256.0,83251.0,0.240234]
[1742139098530,0.252234,83256.0,83251.0,0.240234]
[1742139098734,0.252238,83255.0,83249.0,0.012012]
[1742139098976,0.012011,83251.0,83243.0,0.240259]
[1742139099173,0.00012395,83251.0,83246.0,0.012012]
[1742139099487,0.252252,83250.0,83241.0,0.012013]
[1742139099690,0.252252,83250.0,83243.0,0.240257]
[1742139100093,0.26668877,83250.0,83249.0,0.002]
[1742139100735,0.2668964,83250.0,83249.0,0.002]
[1742139101345,0.26683305,83250.0,83249.0,0.002]
[1742139101546,0.25226,83247.0,83246.0,0.004]
[1742139101706,0.25226,83247.0,83244.0,0.004]
[1742139102066,0.00017537,83246.0,83242.0,0.240263]
[1742139102892,0.00017537,83246.0,83242.0,0.252276]
[1742139103145,0.00017537,83246.0,83244.0,0.001]
[1742139103317,0.25244137,83246.0,83240.0,0.252279]
[1742139103794,0.25244137,83246.0,83241.0,0.252276]
[1742139103990,0.25244137,83246.0,83244.0,0.001]
[1742139104401,0.25244137,83246.0,83241.0,0.252276]
[1742139104855,0.00017537,83246.0,83242.0,0.241261]
[1742139104962,0.00017537,83246.0,83243.0,0.012013]
[1742139105170,0.252258,83248.0,83243.0,0.012013]
[1742139105368,0.00016101,83245.0,83244.0,0.001]
[1742139105618,0.252258,83248.0,83244.0,0.001]
[1742139105826,0.00016391,83245.0,83243.0,0.012013]
[1742139106002,0.24025,83247.0,83243.0,0.012013]
[1742139106211,0.00016101,83244.0,83243.0,0.012013]
[1742139106553,0.00013973,83244.0,83243.0,0.012013]
[1742139106717,0.24025,83247.0,83243.0,0.012013]
[1742139106940,0.00013597,83246.0,83243.0,0.012013]
[1742139107128,0.00013597,83246.0,83243.0,0.252271]
[1742139107373,0.00013597,83246.0,83243.0,0.253271]
[1742139107524,0.012012,83248.0,83243.0,0.253271]
[1742139107730,0.00702776,83245.0,83243.0,0.253271]
[1742139107928,0.012012,83248.0,83243.0,0.252271]
[1742139108135,0.00703044,83244.0,83243.0,0.254271]
[1742139108368,0.252266,83246.0,83243.0,0.002]
[1742139108565,0.00716955,83244.0,83243.0,0.003]
[1742139108769,0.252266,83246.0,83243.0,0.001]
[1742139108930,0.00703044,83244.0,83243.0,0.25227]
[1742139109134,0.012012,83248.0,83243.0,0.25327]
[1742139109336,0.00703044,83247.0,83243.0,0.25327]
[1742139109561,0.00716932,83247.0,83244.0,0.240255]
[1742139109845,0.00716932,83247.0,83246.0,0.012012]
[1742139111257,0.01883096,83250.0,83249.0,0.252255]
[1742139111897,0.00012395,83251.0,83250.0,0.012012]
[1742139112325,0.00728878,83251.0,83250.0,0.012012]
[1742139112525,0.00012395,83251.0,83250.0,0.012012]
[1742139112696,0.00728878,83251.0,83250.0,0.141212]
[1742139113058,0.00012395,83251.0,83250.0,0.141212]
[1742139113579,0.00012395,83251.0,83250.0,0.142212]
[1742139114043,0.00012395,83251.0,83250.0,0.0837]
[1742139114273,0.25237195,83251.0,83250.0,0.001]
[1742139114458,0.00012395,83251.0,83250.0,0.001]
[1742139114601,0.00729584,83251.0,83250.0,0.001]
[1742139114802,0.02612557,83251.0,83249.0,0.252253]
[1742139115230,0.01895368,83251.0,83250.0,0.004]
[1742139116214,0.0261251,83251.0,83250.0,0.004]
[1742139116425,0.0261251,83251.0,83250.0,0.002]
[1742139116624,0.240192,83267.0,83258.0,0.240214]
[1742139116857,0.252232,83257.0,83252.0,0.240231]
[1742139117033,0.01882911,83251.0,83249.0,0.002]
[1742139117237,0.240239,83251.0,83246.0,0.252262]
[1742139117598,0.252246,83252.0,83250.0,0.002]
[1742139118131,0.012011,83251.0,83244.0,0.389389]
[1742139118328,0.252263,83247.0,83243.0,0.24026]
[1742139118534,0.252263,83247.0,83246.0,0.002]
[1742139119849,0.25234716,83247.0,83246.0,0.001]
[1742139121028,0.25234716,83247.0,83246.0,0.002]
[1742139123002,0.25234716,83247.0,83246.0,0.001]
[1742139123490,0.25234716,83247.0,83246.0,0.002]
[1742139123712,0.40787242,83247.0,83246.0,0.002]
[1742139123865,0.252276,83242.0,83241.0,0.00029335]
[1742139124048,0.389396,83242.0,83241.0,0.00029335]
[1742139124246,0.39744808,83242.0,83241.0,0.00029335]
[1742139124680,0.74444808,83242.0,83241.0,0.00029335]
[1742139124838,0.74444808,83242.0,83216.0,0.240332]
[1742139124839,0.012015,83229.0,83216.0,0.240332]
[1742139125036,0.012015,83229.0,83215.0,0.012017]
[1742139125037,0.012015,83228.0,83222.0,0.240319]
[1742139125244,0.012015,83227.0,83218.0,0.240329]
[1742139125472,0.012015,83225.0,83219.0,0.240327]
[1742139125668,0.252322,83227.0,83221.0,0.240321]
[1742139125669,0.01883503,83227.0,83221.0,0.240321]
[1742139125909,0.03316926,83227.0,83220.0,0.012016]
[1742139126153,0.03316926,83227.0,83224.0,0.240313]
[1742139126343,0.03316926,83227.0,83222.0,0.240318]
[1742139126606,0.03316926,83227.0,83223.0,0.240316]
[1742139126860,0.03316926,83227.0,83226.0,0.252324]
[1742139126861,0.01883503,83227.0,83226.0,0.252324]
[1742139127081,0.01439981,83231.0,83229.0,0.240299]
[1742139127497,0.240292,83232.0,83226.0,0.240309]
[1742139127710,0.012014,83234.0,83228.0,0.240303]
[1742139127855,0.540276,83238.0,83233.0,0.240286]
[1742139128055,0.240291,83233.0,83227.0,0.240306]
[1742139128303,0.252305,83233.0,83227.0,0.240306]
[1742139128624,0.012015,83224.0,83223.0,0.002]
[1742139130502,0.012017,83215.0,83206.0,0.252384]
[1742139130723,0.012017,83215.0,83207.0,0.057718]
[1742139131174,0.012017,83215.0,83209.0,0.240356]
[1742139131375,0.01883598,83215.0,83212.0,0.012017]
[1742139131531,0.01883598,83215.0,83214.0,0.240344]
[1742139131731,0.01896007,83215.0,83214.0,0.240344]
[1742139132224,0.03373725,83215.0,83214.0,0.240344]
[1742139132396,0.01896007,83215.0,83214.0,0.240344]
[1742139133162,0.00012409,83215.0,83214.0,0.254361]
[1742139133987,0.00012409,83215.0,83214.0,0.256361]
[1742139134164,0.00012409,83215.0,83214.0,0.244344]
[1742139136211,0.01896082,83215.0,83214.0,0.244344]
[1742139136412,0.03097782,83215.0,83214.0,0.004]
[1742139137241,0.54095017,83215.0,83214.0,0.004]
[1742139137443,0.54095017,83215.0,83197.0,0.0124281]
[1742139137444,0.2524,83201.0,83197.0,0.0124281]
[1742139138247,0.6355,83201.0,83197.0,0.0124281]
[1742139138462,0.5524,83201.0,83197.0,0.0124281]
[1742139138638,0.252396,83203.0,83197.0,0.0124281]
[1742139138842,0.3,83201.0,83197.0,0.0124281]
[1742139139098,0.301,83201.0,83197.0,0.0124281]
[1742139139232,0.32094817,83201.0,83197.0,0.0124281]
[1742139139623,0.02094817,83201.0,83197.0,0.0124281]
[1742139139821,0.01994817,83201.0,83197.0,0.0124281]
[1742139140394,0.00792917,83201.0,83200.0,0.01552231]
[1742139140733,0.01683802,83207.0,83205.0,0.012018]
[1742139140945,0.01683802,83207.0,83206.0,0.093218]
[1742139141916,0.01783802,83207.0,83203.0,0.252393]
[1742139142033,0.01783802,83207.0,83200.0,0.00450331]
[1742139142034,0.240367,83206.0,83200.0,0.00450331]
[1742139142238,0.24824753,83206.0,83200.0,0.01652231]
[1742139142450,0.26026553,83206.0,83201.0,0.012019]
[1742139142900,0.00788053,83206.0,83205.0,0.012018]
[1742139143326,0.240358,83209.0,83204.0,0.252389]
[1742139143521,0.00784875,83206.0,83204.0,0.252389]
[1742139143725,0.252371,83211.0,83205.0,0.252385]
[1742139144047,0.00046289,83215.0,83214.0,0.012017]
[1742139144444,0.00046289,83215.0,83214.0,0.093217]
[1742139145362,0.00246289,83215.0,83214.0,0.093217]
[1742139146191,0.00046289,83215.0,83214.0,0.093217]
[1742139146592,0.00246289,83215.0,83214.0,0.093217]
[1742139146974,0.00046289,83215.0,83214.0,0.093217]
[1742139147311,0.00046289,83215.0,83214.0,0.095217]
[1742139147814,0.00046289,83215.0,83214.0,0.094217]
[1742139147969,0.00046289,83215.0,83214.0,0.093217]
[1742139148179,0.00046289,83215.0,83214.0,0.096217]
[1742139148384,0.00046289,83215.0,83214.0,0.099217]
[1742139152427,0.00046289,83215.0,83214.0,0.10041855]
[1742139152663,0.00046289,83215.0,83214.0,0.55405544]
[1742139152929,0.00046289,83215.0,83214.0,0.55285389]
[1742139153137,8.9e-07,83215.0,83214.0,0.86739474]
[1742139153326,8.9e-07,83215.0,83214.0,0.86498592]
[1742139153598,8.9e-07,83215.0,83214.0,0.91698592]
[1742139154014,8.9e-07,83215.0,83214.0,0.92298592]
[1742139154268,8.9e-07,83215.0,83214.0,0.91998592]
[1742139154583,8.9e-07,83215.0,83214.0,2.41998592]
[1742139154785,8.9e-07,83215.0,83214.0,2.41398592]
[1742139155175,8.9e-07,83215.0,83214.0,2.41998592]
[1742139155382,8.9e-07,83215.0,83214.0,2.43121019]
[1742139155635,8.9e-07,83215.0,83214.0,2.42521019]
[1742139155753,8.9e-07,83215.0,83214.0,2.43121019]
[1742139155967,8.9e-07,83215.0,83214.0,2.43721019]
[1742139157032,8.9e-07,83215.0,83214.0,2.43121019]
[1742139157433,8.9e-07,83215.0,83214.0,2.43721019]
[1742139158145,8.9e-07,83215.0,83214.0,2.42521019]
[1742139158483,8.9e-07,83215.0,83214.0,2.43121019]
[1742139159312,0.3003386,83263.0,83259.0,0.252224]
[1742139159530,0.30046287,83263.0,83259.0,0.252224]
[1742139159738,0.00768574,83262.0,83261.0,0.240208]
[1742139160295,0.02651436,83262.0,83261.0,0.240208]
[1742139160691,0.02651436,83262.0,83261.0,0.252218]
[1742139160895,0.252233,83257.0,83252.0,0.252242]
[1742139161133,0.01201,83258.0,83253.0,0.012011]
[1742139161336,0.00781679,83256.0,83253.0,0.012011]
[1742139161636,0.00781679,83255.0,83253.0,0.25224]
[1742139161913,0.252229,83258.0,83253.0,0.25224]
[1742139162065,0.00781679,83254.0,83253.0,0.25224]
[1742139162268,0.252238,83255.0,83250.0,0.240238]
[1742139162473,0.012011,83255.0,83250.0,0.25225]
[1742139162699,0.01221781,83257.0,83253.0,0.002]
[1742139162914,0.01221781,83257.0,83251.0,0.252245]
[1742139163109,0.25243981,83257.0,83251.0,0.252245]
[1742139163313,0.25243981,83257.0,83253.0,0.00179592]
[1742139163751,0.25243981,83257.0,83251.0,0.252245]
[1742139164054,0.01903538,83257.0,83256.0,0.012011]
[1742139164235,0.01882857,83257.0,83256.0,0.012011]
[1742139164607,0.02670482,83257.0,83256.0,0.012011]
[1742139165781,0.02670482,83257.0,83256.0,0.014011]
[1742139165956,0.02691427,83257.0,83256.0,0.014011]
[1742139166179,0.01882857,83257.0,83256.0,0.091511]
[1742139166585,0.0003384,83258.0,83257.0,0.252231]
[1742139167332,0.0003384,83258.0,83257.0,0.23833198]
[1742139167717,0.0003384,83258.0,83257.0,0.28453198]
[1742139167910,0.0003384,83258.0,83257.0,0.29654298]
[1742139168529,0.0003384,83258.0,83257.0,0.30054298]
[1742139168880,0.0003384,83258.0,83257.0,0.30454298]
[1742139171439,0.0003384,83258.0,83257.0,0.38204298]
[1742139171646,4e-07,83258.0,83257.0,0.69658383]
[1742139172061,2.7e-07,83263.0,83262.0,0.552215]
[1742139172262,2.7e-07,83263.0,83262.0,0.69545585]
[1742139172678,2.7e-07,83263.0,83262.0,1.10222354]
[1742139173418,2.7e-07,83263.0,83262.0,1.11422354]
[1742139173826,2.7e-07,83263.0,83262.0,1.10822354]
[1742139174024,0.0003386,83286.0,83264.0,0.40676742]
[1742139174229,0.0003386,83286.0,83285.0,0.675845]
[1742139174407,0.0003386,83286.0,83285.0,1.21965242]
[1742139175629,0.0003386,83286.0,83285.0,1.17345242]
[1742139176031,0.0003386,83286.0,83285.0,1.17945242]
[1742139176701,0.0003386,83286.0,83285.0,1.18545242]
[1742139179221,0.0003386,83286.0,83285.0,0.67091242]
[1742139179423,0.0003386,83286.0,83285.0,0.80791242]
[1742139180032,0.0003386,83286.0,83285.0,0.395145]
[1742139180429,0.0003386,83286.0,83285.0,0.394145]
[1742139180614,0.0003386,83286.0,83285.0,0.399145]
[1742139181538,0.0003386,83286.0,83285.0,0.387139]
[1742139181741,0.0003386,83286.0,83285.0,0.394145]
[1742139181953,0.00859181,83286.0,83285.0,0.394145]
[1742139182151,0.0003386,83286.0,83285.0,0.389145]
[1742139182398,0.0003386,83286.0,83285.0,0.395145]
[1742139182604,0.0003386,83286.0,83285.0,0.400145]
[1742139182940,0.0003386,83286.0,83285.0,0.389145]
[1742139183073,0.0003386,83286.0,83285.0,0.394145]
[1742139183283,0.0003386,83286.0,83285.0,0.399145]
[1742139184139,6e-07,83286.0,83285.0,0.776145]
[1742139184341,6e-07,83286.0,83285.0,0.824345]
[1742139185119,6e-07,83286.0,83285.0,0.819345]
[1742139185457,6e-07,83286.0,83285.0,0.814345]
[1742139185601,8e-07,83290.0,83289.0,0.31454085]
[1742139185807,1e-08,83290.0,83289.0,0.81031427]
[1742139186770,1e-08,83290.0,83289.0,0.86031427]
[1742139187332,4.1e-07,83299.0,83298.0,0.64864685]
[1742139187551,4.1e-07,83299.0,83298.0,0.74684685]
[1742139188180,0.0003384,83315.0,83298.0,0.74684685]
[1742139188181,8.1e-07,83315.0,83314.0,0.629057]
[1742139188401,9.9e-07,83315.0,83314.0,1.23556527]
[1742139188618,7.9e-07,83324.0,83323.0,0.312001]
[1742139188828,7.9e-07,83324.0,83323.0,0.389001]
[1742139189851,7.9e-07,83324.0,83323.0,0.41554185]
[1742139190180,7.9e-07,83324.0,83323.0,0.40954185]
[1742139190711,7.9e-07,83324.0,83323.0,0.54650185]
[1742139191356,5.9e-07,83330.0,83329.0,0.56655285]
[1742139192513,5.9e-07,83330.0,83329.0,0.57255285]
[1742139192724,5.9e-07,83330.0,83329.0,0.99032027]
[1742139193256,5.9e-07,83330.0,83329.0,0.98532027]
[1742139193386,5.9e-07,83330.0,83329.0,1.0037977]
[1742139193789,5.9e-07,83330.0,83329.0,1.10785942]
[1742139193991,5.9e-07,83330.0,83329.0,0.80785942]
[1742139194798,5.9e-07,83330.0,83329.0,0.80185942]
[1742139195219,5.9e-07,83330.0,83329.0,0.80785942]
[1742139196902,5.9e-07,83330.0,83329.0,0.67077942]
[1742139197038,5.9e-07,83330.0,83329.0,0.80769942]
[1742139197453,5.9e-07,83330.0,83329.0,0.024]
[1742139197846,0.02038809,83330.0,83329.0,0.012]
[1742139198050,0.01200059,83330.0,83329.0,0.012]
[1742139198252,0.02038026,83330.0,83329.0,0.012]
[1742139198473,0.03759816,83330.0,83329.0,0.012]
[1742139198676,0.39928026,83330.0,83329.0,0.012]
[1742139198884,0.41638622,83330.0,83329.0,0.006]
[1742139199083,0.012001,83321.0,83316.0,0.012002]
[1742139199529,0.240042,83319.0,83313.0,0.012002]
[1742139199731,0.240046,83318.0,83313.0,0.252058]
[1742139199911,0.240049,83316.0,83308.0,0.252073]
[1742139200111,0.012002,83313.0,83308.0,0.252073]
[1742139200316,0.012002,83313.0,83305.0,0.012004]
[1742139200317,0.240064,83311.0,83303.0,0.012004]
[1742139200459,0.240061,83312.0,83304.0,0.252088]
[1742139200460,0.012003,83309.0,83304.0,0.252088]
[1742139200656,0.240061,83312.0,83305.0,0.252083]
[1742139200657,0.012003,83310.0,83305.0,0.252083]
[1742139200866,0.00832724,83308.0,83306.0,0.012003]
[1742139201116,0.240066,83311.0,83306.0,0.012003]
[1742139201352,0.00832724,83307.0,83306.0,0.252079]
[1742139201532,0.01881606,83308.0,83306.0,0.012003]
[1742139201735,0.01881606,83308.0,83306.0,0.252079]
[1742139201937,0.00832724,83307.0,83306.0,0.252079]
[1742139202347,0.252085,83305.0,83304.0,0.00012418]
[1742139202523,0.00832694,83307.0,83304.0,0.25220918]
[1742139202697,0.00798026,83307.0,83304.0,0.25220918]
[1742139202930,0.012002,83318.0,83312.0,0.012003]
[1742139203134,0.312002,83318.0,83314.0,0.240055]
[1742139203357,0.252028,83324.0,83313.0,0.012002]
[1742139203531,0.3,83322.0,83318.0,0.012002]
[1742139203774,0.3,83322.0,83317.0,0.252048]
[1742139203971,0.3,83322.0,83319.0,0.24004]
[1742139204149,0.3,83322.0,83317.0,0.252048]
[1742139204355,0.3,83322.0,83318.0,0.240044]
[1742139204557,0.3,83323.0,83319.0,0.240038]
[1742139204741,0.3,83323.0,83318.0,0.252046]
[1742139205273,0.252033,83322.0,83319.0,0.001]
[1742139205475,0.240047,83317.0,83314.0,0.002]
[1742139205652,0.240042,83319.0,83314.0,0.002]
[1742139206020,0.252044,83319.0,83314.0,0.252055]
[1742139206156,0.252042,83320.0,83318.0,0.001]
[1742139206394,0.252042,83320.0,83319.0,0.001]
[1742139206993,0.27084932,83322.0,83319.0,0.001]
[1742139207194,0.01881432,83322.0,83319.0,0.001]
[1742139207464,0.252031,83323.0,83319.0,0.001]
[1742139207676,0.252031,83323.0,83318.0,0.012002]
[1742139208019,0.240032,83322.0,83316.0,0.252049]
[1742139208337,0.240037,83321.0,83319.0,0.002]
[1742139208537,0.240037,83321.0,83319.0,0.003]
[1742139208737,0.240037,83321.0,83319.0,0.002]
[1742139209068,0.240037,83321.0,83318.0,0.001]
[1742139209486,0.24004,83320.0,83316.0,0.001]
[1742139209690,0.24004,83320.0,83315.0,0.252054]
[1742139209894,0.240042,83319.0,83315.0,0.252054]
[1742139210743,0.240046,83318.0,83313.0,0.240058]
[1742139210949,0.012002,83318.0,83313.0,0.240058]
[1742139211244,0.012002,83318.0,83315.0,0.002]
[1742139211245,0.012002,83316.0,83315.0,0.002]
[1742139211631,0.252054,83316.0,83308.0,0.252075]
[1742139211854,0.240056,83314.0,83308.0,0.012003]
[1742139212144,0.240056,83314.0,83313.0,0.002]
[1742139212346,0.252048,83318.0,83313.0,0.002]
[1742139212547,0.3,83323.0,83316.0,0.012002]
[1742139212776,0.012001,83322.0,83317.0,0.012002]
[1742139213958,0.012002,83314.0,83313.0,0.003]
[1742139214341,0.01997378,83314.0,83313.0,0.003]
[1742139214775,0.240058,83313.0,83307.0,0.252076]
[1742139214954,0.02678765,83314.0,83310.0,0.240066]
[1742139215201,0.00795939,83312.0,83311.0,0.012003]
[1742139215382,0.01881587,83314.0,83312.0,0.240061]
[1742139215573,0.01881587,83314.0,83313.0,0.003]
[1742139215938,0.252053,83316.0,83313.0,0.003]
[1742139217131,0.252056,83315.0,83313.0,0.003]
[1742139217309,0.012002,83314.0,83313.0,0.003]
[1742139217686,0.012002,83314.0,83306.0,0.012003]
[1742139217687,0.252081,83306.0,83304.0,0.13712418]
[1742139217883,0.012003,83308.0,83304.0,0.13712418]
[1742139218108,0.240078,83307.0,83304.0,0.13712418]
[1742139218737,0.012003,83308.0,83304.0,0.13712418]
[1742139218935,0.240067,83310.0,83306.0,0.240076]
[1742139219113,0.012003,83312.0,83308.0,0.240071]
[1742139219474,0.240044,83318.0,83310.0,0.012003]
[1742139219604,0.02451631,83327.0,83304.0,0.38220618]
[1742139219605,0.012001,83326.0,83319.0,0.012002]
[1742139219806,0.240025,83325.0,83320.0,0.012001]
[1742139220012,0.240033,83322.0,83318.0,0.240043]
[1742139220221,0.240038,83320.0,83316.0,0.240048]
[1742139220435,0.012002,83318.0,83312.0,0.012003]
[1742139221109,0.240038,83320.0,83313.0,0.012002]
[1742139221315,0.252036,83321.0,83315.0,0.012002]
[1742139221584,0.240029,83323.0,83317.0,0.012002]
[1742139221808,0.240029,83323.0,83308.0,0.004]
[1742139221809,5.9e-07,83330.0,83328.0,0.240015]
[1742139222009,5.9e-07,83330.0,83328.0,0.252013]
[1742139222212,5.9e-07,83330.0,83329.0,0.012]
[1742139222827,5.9e-07,83330.0,83329.0,0.0931]
[1742139223028,5.9e-07,83330.0,83329.0,0.09429994]
[1742139223444,0.00041444,83330.0,83329.0,0.50106736]
[1742139223650,4.4e-07,83330.0,83329.0,0.53846487]
[1742139223874,8.4e-07,83333.0,83332.0,0.64384385]
[1742139224079,8.4e-07,83333.0,83332.0,1.05061127]
[1742139225263,8.4e-07,83333.0,83332.0,1.06261127]
[1742139225679,8.4e-07,83333.0,83332.0,1.07377914]
[1742139226928,0.01914636,83346.0,83332.0,1.07377914]
[1742139226929,0.011997,83353.0,83345.0,0.239964]
[1742139227129,0.239923,83360.0,83355.0,0.239935]
[1742139227319,0.24004713,83360.0,83355.0,0.251931]
[1742139227496,0.00012413,83360.0,83358.0,0.239928]
[1742139227680,0.00012413,83360.0,83359.0,0.011996]
[1742139228090,0.239931,83358.0,83352.0,0.239945]
[1742139228291,0.23994,83354.0,83348.0,0.239957]
[1742139228497,0.25193,83356.0,83350.0,0.251946]
[1742139228498,0.011996,83356.0,83350.0,0.251946]
[1742139228739,0.011996,83356.0,83351.0,0.239947]
[1742139228923,0.251929,83357.0,83351.0,0.011997]